{"text_format":"3","workbook":"xlsx","n_sheets":3,"sheets":["Dữ liệu Khách hàng tiềm năng","Doanh số dự báo ","Dự báo theo trọng số hàng tháng"],"not_rendered":{"charts":1,"defined_names":10},"read":"whole","date_system":"1900"}

{"sheet":"Dữ liệu Khách hàng tiềm năng","index":0,"n_rows":9,"n_cols":10,"rows_kept":9}
[null,"Tên Công ty"]
[null,"Bảng theo dõi khách hàng tiềm năng chi tiết"]
[null,{"$f":"TODAY()","v":"2022-04-07"}]
[{"$nulls":8},{"$f":"Tên_công_ty","v":"Tên Công ty"},"BÍ MẬT"]
[null,"Tên khách hàng tiềm năng","Thông tin liên hệ của khách hàng tiềm năng","Nguồn \nkhách hàng tiềm năng","Khu vực \nkhách hàng tiềm năng","Loại \nkhách hàng tiềm năng","Cơ hội tiềm năng","Cơ hội \nbán hàng","Dự báo \nchốt","Dự báo \ntheo trọng số"]
[null,"A. Datum Corporation",{"$nulls":3},"Chiến lược",{"v":300000,"d":"300,000.00 ₫"},{"v":0.9,"d":"90%"},"Tháng Một",{"$f":"IFERROR(IF(Dữ_liệu_khách_hàng_tiềm_năng[[#This Row],[Cơ hội \nbán hàng]]<>\"\",Dữ_liệu_khách_hàng_tiềm_năng[[#This Row],[Cơ hội \nbán hàng]]*Dữ_liệu_khách_hàng_tiềm_năng[[#This Row],[Cơ hội tiềm năng]],\"\"),\"\")","v":{"v":270000,"d":"270,000.00 ₫"}}]
[null,"Adventure Works",{"$nulls":3},"Chiến lược",{"v":200000,"d":"200,000.00 ₫"},{"v":0.1,"d":"10%"},"Tháng Hai",{"$f":"IFERROR(IF(Dữ_liệu_khách_hàng_tiềm_năng[[#This Row],[Cơ hội \nbán hàng]]<>\"\",Dữ_liệu_khách_hàng_tiềm_năng[[#This Row],[Cơ hội \nbán hàng]]*Dữ_liệu_khách_hàng_tiềm_năng[[#This Row],[Cơ hội tiềm năng]],\"\"),\"\")","v":{"v":20000,"d":"20,000.00 ₫"}}]
[null,"Alpine Ski House",{"$nulls":3},"Chiến thuật",{"v":100000,"d":"100,000.00 ₫"},{"v":0.2,"d":"20%"},"Tháng Ba",{"$f":"IFERROR(IF(Dữ_liệu_khách_hàng_tiềm_năng[[#This Row],[Cơ hội \nbán hàng]]<>\"\",Dữ_liệu_khách_hàng_tiềm_năng[[#This Row],[Cơ hội \nbán hàng]]*Dữ_liệu_khách_hàng_tiềm_năng[[#This Row],[Cơ hội tiềm năng]],\"\"),\"\")","v":{"v":20000,"d":"20,000.00 ₫"}}]
[null,"Tổng cộng",{"$nulls":4},{"$f":"SUBTOTAL(109,Dữ_liệu_khách_hàng_tiềm_năng[Cơ hội tiềm năng])","v":{"v":600000,"d":"600,000.00 ₫"}},null,null,{"$f":"SUBTOTAL(109,Dữ_liệu_khách_hàng_tiềm_năng[Dự báo \ntheo trọng số])","v":{"v":310000,"d":"310,000.00 ₫"}}]

{"sheet":"Doanh số dự báo ","index":1,"n_rows":21,"n_cols":14,"rows_kept":21,"merged":[[3,12,3,13]]}
[null,{"$f":"Tên_công_ty","v":"Tên Công ty"}]
[null,"Doanh số dự báo"]
[null,{"$f":"Ngày_theo_dõi","v":"2022-04-07"}]
[{"$nulls":11},{"$f":"Tên_công_ty","v":"Tên Công ty"},"BÍ MẬT"]
[null,"Tên khách hàng tiềm năng","Dự báo \nTháng Một","Dự báo \nTháng Hai","Dự báo \nTháng Ba","Dự báo \nTháng Tư","Dự báo \nTháng Năm","Dự báo \nTháng Sáu","Dự báo \nTháng Bảy","Dự báo \nTháng Tám","Dự báo \nTháng Chín","Dự báo \nTháng Mười","Dự báo \nTháng Mười Một","Dự báo \nTháng Mười Hai"]
[null,{"$f":"IFERROR(IF(AND(Dữ_liệu_khách_hàng_tiềm_năng[[#This Row],[Tên khách hàng tiềm năng]] <> \"\", ROW(Doanh_số_dự_báo[Tên khách hàng tiềm năng])<>Mục_nhập_cuối),Dữ_liệu_khách_hàng_tiềm_năng[Tên khách hàng tiềm năng], \"\"),\"\")","v":"A. Datum Corporation"},{"$f":"IFERROR(IF(Dữ_liệu_khách_hàng_tiềm_năng[[#This Row],[Dự báo \nchốt]] <>\"\",IF(Dữ_liệu_khách_hàng_tiềm_năng[[#This Row],[Dự báo \nchốt]]= \"Tháng Một\",Dữ_liệu_khách_hàng_tiềm_năng[Dự báo \ntheo trọng số],0),\"\"),\"\")","v":{"v":270000,"d":"270,000 ₫"}},{"$f":"IFERROR(IF(Dữ_liệu_khách_hàng_tiềm_năng[[#This Row],[Dự báo \nchốt]] <>\"\",IF(Dữ_liệu_khách_hàng_tiềm_năng[[#This Row],[Dự báo \nchốt]] = \"Tháng Hai\",Dữ_liệu_khách_hàng_tiềm_năng[Dự báo \ntheo trọng số],0),\"\"),\"\")","v":{"v":0,"d":"0 ₫"}},{"$f":"IFERROR(IF(Dữ_liệu_khách_hàng_tiềm_năng[[#This Row],[Dự báo \nchốt]] <>\"\",IF(Dữ_liệu_khách_hàng_tiềm_năng[[#This Row],[Dự báo \nchốt]] = \"Tháng Ba\",Dữ_liệu_khách_hàng_tiềm_năng[Dự báo \ntheo trọng số],0),\"\"),\"\")","v":{"v":0,"d":"0 ₫"}},{"$f":"IFERROR(IF(Dữ_liệu_khách_hàng_tiềm_năng[[#This Row],[Dự báo \nchốt]] <>\"\",IF(Dữ_liệu_khách_hàng_tiềm_năng[[#This Row],[Dự báo \nchốt]] = \"Dự báo\",Dữ_liệu_khách_hàng_tiềm_năng[Dự báo \ntheo trọng số],0),\"\"),\"\")","v":{"v":0,"d":"$0"}},{"$f":"IFERROR(IF(Dữ_liệu_khách_hàng_tiềm_năng[[#This Row],[Dự báo \nchốt]] <>\"\",IF(Dữ_liệu_khách_hàng_tiềm_năng[[#This Row],[Dự báo \nchốt]] = \"Dự báo\",Dữ_liệu_khách_hàng_tiềm_năng[Dự báo \ntheo trọng số],0),\"\"),\"\")","v":{"v":0,"d":"0 ₫"}},{"$f":"IFERROR(IF(Dữ_liệu_khách_hàng_tiềm_năng[[#This Row],[Dự báo \nchốt]] <>\"\",IF(Dữ_liệu_khách_hàng_tiềm_năng[[#This Row],[Dự báo \nchốt]] = \"Dự báo\",Dữ_liệu_khách_hàng_tiềm_năng[Dự báo \ntheo trọng số],0),\"\"),\"\")","v":{"v":0,"d":"0 ₫"}},{"$f":"IFERROR(IF(Dữ_liệu_khách_hàng_tiềm_năng[[#This Row],[Dự báo \nchốt]] <>\"\",IF(Dữ_liệu_khách_hàng_tiềm_năng[[#This Row],[Dự báo \nchốt]] = \"July\",Dữ_liệu_khách_hàng_tiềm_năng[Dự báo \ntheo trọng số],0),\"\"),\"\")","v":{"v":0,"d":"0 ₫"}},{"$f":"IFERROR(IF(Dữ_liệu_khách_hàng_tiềm_năng[[#This Row],[Dự báo \nchốt]] <>\"\",IF(Dữ_liệu_khách_hàng_tiềm_năng[[#This Row],[Dự báo \nchốt]] = \"Dự báo\",Dữ_liệu_khách_hàng_tiềm_năng[Dự báo \ntheo trọng số],0),\"\"),\"\")","v":{"v":0,"d":"$0"}},{"$f":"IFERROR(IF(Dữ_liệu_khách_hàng_tiềm_năng[[#This Row],[Dự báo \nchốt]] <>\"\",IF(Dữ_liệu_khách_hàng_tiềm_năng[[#This Row],[Dự báo \nchốt]] = \"Dự báo\",Dữ_liệu_khách_hàng_tiềm_năng[Dự báo \ntheo trọng số],0),\"\"),\"\")","v":{"v":0,"d":"0 ₫"}},{"$f":"IFERROR(IF(Dữ_liệu_khách_hàng_tiềm_năng[[#This Row],[Dự báo \nchốt]] <>\"\",IF(Dữ_liệu_khách_hàng_tiềm_năng[[#This Row],[Dự báo \nchốt]] = \"Dự báo\",Dữ_liệu_khách_hàng_tiềm_năng[Dự báo \ntheo trọng số],0),\"\"),\"\")","v":{"v":0,"d":"0 ₫"}},{"$f":"IFERROR(IF(Dữ_liệu_khách_hàng_tiềm_năng[[#This Row],[Dự báo \nchốt]] <>\"\",IF(Dữ_liệu_khách_hàng_tiềm_năng[[#This Row],[Dự báo \nchốt]] = \"Dự báo\",Dữ_liệu_khách_hàng_tiềm_năng[Dự báo \ntheo trọng số],0),\"\"),\"\")","v":{"v":0,"d":"0 ₫"}},{"$f":"IFERROR(IF(Dữ_liệu_khách_hàng_tiềm_năng[[#This Row],[Dự báo \nchốt]] <>\"\",IF(Dữ_liệu_khách_hàng_tiềm_năng[[#This Row],[Dự báo \nchốt]] = \"Dự báo\",Dữ_liệu_khách_hàng_tiềm_năng[Dự báo \ntheo trọng số],0),\"\"),\"\")","v":{"v":0,"d":"0 ₫"}}]
[null,{"$f":"IFERROR(IF(AND(Dữ_liệu_khách_hàng_tiềm_năng[[#This Row],[Tên khách hàng tiềm năng]] <> \"\", ROW(Doanh_số_dự_báo[Tên khách hàng tiềm năng])<>Mục_nhập_cuối),Dữ_liệu_khách_hàng_tiềm_năng[Tên khách hàng tiềm năng], \"\"),\"\")","v":"Adventure Works"},{"$f":"IFERROR(IF(Dữ_liệu_khách_hàng_tiềm_năng[[#This Row],[Dự báo \nchốt]] <>\"\",IF(Dữ_liệu_khách_hàng_tiềm_năng[[#This Row],[Dự báo \nchốt]]= \"Tháng Một\",Dữ_liệu_khách_hàng_tiềm_năng[Dự báo \ntheo trọng số],0),\"\"),\"\")","v":{"v":0,"d":"0 ₫"}},{"$f":"IFERROR(IF(Dữ_liệu_khách_hàng_tiềm_năng[[#This Row],[Dự báo \nchốt]] <>\"\",IF(Dữ_liệu_khách_hàng_tiềm_năng[[#This Row],[Dự báo \nchốt]] = \"Tháng Hai\",Dữ_liệu_khách_hàng_tiềm_năng[Dự báo \ntheo trọng số],0),\"\"),\"\")","v":{"v":20000,"d":"20,000 ₫"}},{"$f":"IFERROR(IF(Dữ_liệu_khách_hàng_tiềm_năng[[#This Row],[Dự báo \nchốt]] <>\"\",IF(Dữ_liệu_khách_hàng_tiềm_năng[[#This Row],[Dự báo \nchốt]] = \"Tháng Ba\",Dữ_liệu_khách_hàng_tiềm_năng[Dự báo \ntheo trọng số],0),\"\"),\"\")","v":{"v":0,"d":"0 ₫"}},{"$f":"IFERROR(IF(Dữ_liệu_khách_hàng_tiềm_năng[[#This Row],[Dự báo \nchốt]] <>\"\",IF(Dữ_liệu_khách_hàng_tiềm_năng[[#This Row],[Dự báo \nchốt]] = \"Dự báo\",Dữ_liệu_khách_hàng_tiềm_năng[Dự báo \ntheo trọng số],0),\"\"),\"\")","v":{"v":0,"d":"$0"}},{"$f":"IFERROR(IF(Dữ_liệu_khách_hàng_tiềm_năng[[#This Row],[Dự báo \nchốt]] <>\"\",IF(Dữ_liệu_khách_hàng_tiềm_năng[[#This Row],[Dự báo \nchốt]] = \"Dự báo\",Dữ_liệu_khách_hàng_tiềm_năng[Dự báo \ntheo trọng số],0),\"\"),\"\")","v":{"v":0,"d":"0 ₫"}},{"$f":"IFERROR(IF(Dữ_liệu_khách_hàng_tiềm_năng[[#This Row],[Dự báo \nchốt]] <>\"\",IF(Dữ_liệu_khách_hàng_tiềm_năng[[#This Row],[Dự báo \nchốt]] = \"Dự báo\",Dữ_liệu_khách_hàng_tiềm_năng[Dự báo \ntheo trọng số],0),\"\"),\"\")","v":{"v":0,"d":"0 ₫"}},{"$f":"IFERROR(IF(Dữ_liệu_khách_hàng_tiềm_năng[[#This Row],[Dự báo \nchốt]] <>\"\",IF(Dữ_liệu_khách_hàng_tiềm_năng[[#This Row],[Dự báo \nchốt]] = \"July\",Dữ_liệu_khách_hàng_tiềm_năng[Dự báo \ntheo trọng số],0),\"\"),\"\")","v":{"v":0,"d":"0 ₫"}},{"$f":"IFERROR(IF(Dữ_liệu_khách_hàng_tiềm_năng[[#This Row],[Dự báo \nchốt]] <>\"\",IF(Dữ_liệu_khách_hàng_tiềm_năng[[#This Row],[Dự báo \nchốt]] = \"Dự báo\",Dữ_liệu_khách_hàng_tiềm_năng[Dự báo \ntheo trọng số],0),\"\"),\"\")","v":{"v":0,"d":"$0"}},{"$f":"IFERROR(IF(Dữ_liệu_khách_hàng_tiềm_năng[[#This Row],[Dự báo \nchốt]] <>\"\",IF(Dữ_liệu_khách_hàng_tiềm_năng[[#This Row],[Dự báo \nchốt]] = \"Dự báo\",Dữ_liệu_khách_hàng_tiềm_năng[Dự báo \ntheo trọng số],0),\"\"),\"\")","v":{"v":0,"d":"0 ₫"}},{"$f":"IFERROR(IF(Dữ_liệu_khách_hàng_tiềm_năng[[#This Row],[Dự báo \nchốt]] <>\"\",IF(Dữ_liệu_khách_hàng_tiềm_năng[[#This Row],[Dự báo \nchốt]] = \"Dự báo\",Dữ_liệu_khách_hàng_tiềm_năng[Dự báo \ntheo trọng số],0),\"\"),\"\")","v":{"v":0,"d":"0 ₫"}},{"$f":"IFERROR(IF(Dữ_liệu_khách_hàng_tiềm_năng[[#This Row],[Dự báo \nchốt]] <>\"\",IF(Dữ_liệu_khách_hàng_tiềm_năng[[#This Row],[Dự báo \nchốt]] = \"Dự báo\",Dữ_liệu_khách_hàng_tiềm_năng[Dự báo \ntheo trọng số],0),\"\"),\"\")","v":{"v":0,"d":"0 ₫"}},{"$f":"IFERROR(IF(Dữ_liệu_khách_hàng_tiềm_năng[[#This Row],[Dự báo \nchốt]] <>\"\",IF(Dữ_liệu_khách_hàng_tiềm_năng[[#This Row],[Dự báo \nchốt]] = \"Dự báo\",Dữ_liệu_khách_hàng_tiềm_năng[Dự báo \ntheo trọng số],0),\"\"),\"\")","v":{"v":0,"d":"0 ₫"}}]
[null,{"$f":"IFERROR(IF(AND(Dữ_liệu_khách_hàng_tiềm_năng[[#This Row],[Tên khách hàng tiềm năng]] <> \"\", ROW(Doanh_số_dự_báo[Tên khách hàng tiềm năng])<>Mục_nhập_cuối),Dữ_liệu_khách_hàng_tiềm_năng[Tên khách hàng tiềm năng], \"\"),\"\")","v":"Alpine Ski House"},{"$f":"IFERROR(IF(Dữ_liệu_khách_hàng_tiềm_năng[[#This Row],[Dự báo \nchốt]] <>\"\",IF(Dữ_liệu_khách_hàng_tiềm_năng[[#This Row],[Dự báo \nchốt]]= \"Tháng Một\",Dữ_liệu_khách_hàng_tiềm_năng[Dự báo \ntheo trọng số],0),\"\"),\"\")","v":{"v":0,"d":"0 ₫"}},{"$f":"IFERROR(IF(Dữ_liệu_khách_hàng_tiềm_năng[[#This Row],[Dự báo \nchốt]] <>\"\",IF(Dữ_liệu_khách_hàng_tiềm_năng[[#This Row],[Dự báo \nchốt]] = \"Tháng Hai\",Dữ_liệu_khách_hàng_tiềm_năng[Dự báo \ntheo trọng số],0),\"\"),\"\")","v":{"v":0,"d":"0 ₫"}},{"$f":"IFERROR(IF(Dữ_liệu_khách_hàng_tiềm_năng[[#This Row],[Dự báo \nchốt]] <>\"\",IF(Dữ_liệu_khách_hàng_tiềm_năng[[#This Row],[Dự báo \nchốt]] = \"Tháng Ba\",Dữ_liệu_khách_hàng_tiềm_năng[Dự báo \ntheo trọng số],0),\"\"),\"\")","v":{"v":20000,"d":"20,000 ₫"}},{"$f":"IFERROR(IF(Dữ_liệu_khách_hàng_tiềm_năng[[#This Row],[Dự báo \nchốt]] <>\"\",IF(Dữ_liệu_khách_hàng_tiềm_năng[[#This Row],[Dự báo \nchốt]] = \"Dự báo\",Dữ_liệu_khách_hàng_tiềm_năng[Dự báo \ntheo trọng số],0),\"\"),\"\")","v":{"v":0,"d":"$0"}},{"$f":"IFERROR(IF(Dữ_liệu_khách_hàng_tiềm_năng[[#This Row],[Dự báo \nchốt]] <>\"\",IF(Dữ_liệu_khách_hàng_tiềm_năng[[#This Row],[Dự báo \nchốt]] = \"Dự báo\",Dữ_liệu_khách_hàng_tiềm_năng[Dự báo \ntheo trọng số],0),\"\"),\"\")","v":{"v":0,"d":"0 ₫"}},{"$f":"IFERROR(IF(Dữ_liệu_khách_hàng_tiềm_năng[[#This Row],[Dự báo \nchốt]] <>\"\",IF(Dữ_liệu_khách_hàng_tiềm_năng[[#This Row],[Dự báo \nchốt]] = \"Dự báo\",Dữ_liệu_khách_hàng_tiềm_năng[Dự báo \ntheo trọng số],0),\"\"),\"\")","v":{"v":0,"d":"0 ₫"}},{"$f":"IFERROR(IF(Dữ_liệu_khách_hàng_tiềm_năng[[#This Row],[Dự báo \nchốt]] <>\"\",IF(Dữ_liệu_khách_hàng_tiềm_năng[[#This Row],[Dự báo \nchốt]] = \"July\",Dữ_liệu_khách_hàng_tiềm_năng[Dự báo \ntheo trọng số],0),\"\"),\"\")","v":{"v":0,"d":"0 ₫"}},{"$f":"IFERROR(IF(Dữ_liệu_khách_hàng_tiềm_năng[[#This Row],[Dự báo \nchốt]] <>\"\",IF(Dữ_liệu_khách_hàng_tiềm_năng[[#This Row],[Dự báo \nchốt]] = \"Dự báo\",Dữ_liệu_khách_hàng_tiềm_năng[Dự báo \ntheo trọng số],0),\"\"),\"\")","v":{"v":0,"d":"$0"}},{"$f":"IFERROR(IF(Dữ_liệu_khách_hàng_tiềm_năng[[#This Row],[Dự báo \nchốt]] <>\"\",IF(Dữ_liệu_khách_hàng_tiềm_năng[[#This Row],[Dự báo \nchốt]] = \"Dự báo\",Dữ_liệu_khách_hàng_tiềm_năng[Dự báo \ntheo trọng số],0),\"\"),\"\")","v":{"v":0,"d":"0 ₫"}},{"$f":"IFERROR(IF(Dữ_liệu_khách_hàng_tiềm_năng[[#This Row],[Dự báo \nchốt]] <>\"\",IF(Dữ_liệu_khách_hàng_tiềm_năng[[#This Row],[Dự báo \nchốt]] = \"Dự báo\",Dữ_liệu_khách_hàng_tiềm_năng[Dự báo \ntheo trọng số],0),\"\"),\"\")","v":{"v":0,"d":"0 ₫"}},{"$f":"IFERROR(IF(Dữ_liệu_khách_hàng_tiềm_năng[[#This Row],[Dự báo \nchốt]] <>\"\",IF(Dữ_liệu_khách_hàng_tiềm_năng[[#This Row],[Dự báo \nchốt]] = \"Dự báo\",Dữ_liệu_khách_hàng_tiềm_năng[Dự báo \ntheo trọng số],0),\"\"),\"\")","v":{"v":0,"d":"0 ₫"}},{"$f":"IFERROR(IF(Dữ_liệu_khách_hàng_tiềm_năng[[#This Row],[Dự báo \nchốt]] <>\"\",IF(Dữ_liệu_khách_hàng_tiềm_năng[[#This Row],[Dự báo \nchốt]] = \"Dự báo\",Dữ_liệu_khách_hàng_tiềm_năng[Dự báo \ntheo trọng số],0),\"\"),\"\")","v":{"v":0,"d":"0 ₫"}}]
[null,{"$f":"IFERROR(IF(AND(Dữ_liệu_khách_hàng_tiềm_năng[[#This Row],[Tên khách hàng tiềm năng]] <> \"\", ROW(Doanh_số_dự_báo[Tên khách hàng tiềm năng])<>Mục_nhập_cuối),Dữ_liệu_khách_hàng_tiềm_năng[Tên khách hàng tiềm năng], \"\"),\"\")","v":""},{"$f":"IFERROR(IF(Dữ_liệu_khách_hàng_tiềm_năng[[#This Row],[Dự báo \nchốt]] <>\"\",IF(Dữ_liệu_khách_hàng_tiềm_năng[[#This Row],[Dự báo \nchốt]]= \"Tháng Một\",Dữ_liệu_khách_hàng_tiềm_năng[Dự báo \ntheo trọng số],0),\"\"),\"\")","v":""},{"$f":"IFERROR(IF(Dữ_liệu_khách_hàng_tiềm_năng[[#This Row],[Dự báo \nchốt]] <>\"\",IF(Dữ_liệu_khách_hàng_tiềm_năng[[#This Row],[Dự báo \nchốt]] = \"Tháng Hai\",Dữ_liệu_khách_hàng_tiềm_năng[Dự báo \ntheo trọng số],0),\"\"),\"\")","v":""},{"$f":"IFERROR(IF(Dữ_liệu_khách_hàng_tiềm_năng[[#This Row],[Dự báo \nchốt]] <>\"\",IF(Dữ_liệu_khách_hàng_tiềm_năng[[#This Row],[Dự báo \nchốt]] = \"Tháng Ba\",Dữ_liệu_khách_hàng_tiềm_năng[Dự báo \ntheo trọng số],0),\"\"),\"\")","v":""},{"$f":"IFERROR(IF(Dữ_liệu_khách_hàng_tiềm_năng[[#This Row],[Dự báo \nchốt]] <>\"\",IF(Dữ_liệu_khách_hàng_tiềm_năng[[#This Row],[Dự báo \nchốt]] = \"Dự báo\",Dữ_liệu_khách_hàng_tiềm_năng[Dự báo \ntheo trọng số],0),\"\"),\"\")","v":""},{"$f":"IFERROR(IF(Dữ_liệu_khách_hàng_tiềm_năng[[#This Row],[Dự báo \nchốt]] <>\"\",IF(Dữ_liệu_khách_hàng_tiềm_năng[[#This Row],[Dự báo \nchốt]] = \"Dự báo\",Dữ_liệu_khách_hàng_tiềm_năng[Dự báo \ntheo trọng số],0),\"\"),\"\")","v":""},{"$f":"IFERROR(IF(Dữ_liệu_khách_hàng_tiềm_năng[[#This Row],[Dự báo \nchốt]] <>\"\",IF(Dữ_liệu_khách_hàng_tiềm_năng[[#This Row],[Dự báo \nchốt]] = \"Dự báo\",Dữ_liệu_khách_hàng_tiềm_năng[Dự báo \ntheo trọng số],0),\"\"),\"\")","v":""},{"$f":"IFERROR(IF(Dữ_liệu_khách_hàng_tiềm_năng[[#This Row],[Dự báo \nchốt]] <>\"\",IF(Dữ_liệu_khách_hàng_tiềm_năng[[#This Row],[Dự báo \nchốt]] = \"July\",Dữ_liệu_khách_hàng_tiềm_năng[Dự báo \ntheo trọng số],0),\"\"),\"\")","v":""},{"$f":"IFERROR(IF(Dữ_liệu_khách_hàng_tiềm_năng[[#This Row],[Dự báo \nchốt]] <>\"\",IF(Dữ_liệu_khách_hàng_tiềm_năng[[#This Row],[Dự báo \nchốt]] = \"Dự báo\",Dữ_liệu_khách_hàng_tiềm_năng[Dự báo \ntheo trọng số],0),\"\"),\"\")","v":""},{"$f":"IFERROR(IF(Dữ_liệu_khách_hàng_tiềm_năng[[#This Row],[Dự báo \nchốt]] <>\"\",IF(Dữ_liệu_khách_hàng_tiềm_năng[[#This Row],[Dự báo \nchốt]] = \"Dự báo\",Dữ_liệu_khách_hàng_tiềm_năng[Dự báo \ntheo trọng số],0),\"\"),\"\")","v":""},{"$f":"IFERROR(IF(Dữ_liệu_khách_hàng_tiềm_năng[[#This Row],[Dự báo \nchốt]] <>\"\",IF(Dữ_liệu_khách_hàng_tiềm_năng[[#This Row],[Dự báo \nchốt]] = \"Dự báo\",Dữ_liệu_khách_hàng_tiềm_năng[Dự báo \ntheo trọng số],0),\"\"),\"\")","v":""},{"$f":"IFERROR(IF(Dữ_liệu_khách_hàng_tiềm_năng[[#This Row],[Dự báo \nchốt]] <>\"\",IF(Dữ_liệu_khách_hàng_tiềm_năng[[#This Row],[Dự báo \nchốt]] = \"Dự báo\",Dữ_liệu_khách_hàng_tiềm_năng[Dự báo \ntheo trọng số],0),\"\"),\"\")","v":""},{"$f":"IFERROR(IF(Dữ_liệu_khách_hàng_tiềm_năng[[#This Row],[Dự báo \nchốt]] <>\"\",IF(Dữ_liệu_khách_hàng_tiềm_năng[[#This Row],[Dự báo \nchốt]] = \"Dự báo\",Dữ_liệu_khách_hàng_tiềm_năng[Dự báo \ntheo trọng số],0),\"\"),\"\")","v":""}]
[null,{"$f":"IFERROR(IF(AND(Dữ_liệu_khách_hàng_tiềm_năng[[#This Row],[Tên khách hàng tiềm năng]] <> \"\", ROW(Doanh_số_dự_báo[Tên khách hàng tiềm năng])<>Mục_nhập_cuối),Dữ_liệu_khách_hàng_tiềm_năng[Tên khách hàng tiềm năng], \"\"),\"\")","v":""},{"$f":"IFERROR(IF(Dữ_liệu_khách_hàng_tiềm_năng[[#This Row],[Dự báo \nchốt]] <>\"\",IF(Dữ_liệu_khách_hàng_tiềm_năng[[#This Row],[Dự báo \nchốt]]= \"Tháng Một\",Dữ_liệu_khách_hàng_tiềm_năng[Dự báo \ntheo trọng số],0),\"\"),\"\")","v":""},{"$f":"IFERROR(IF(Dữ_liệu_khách_hàng_tiềm_năng[[#This Row],[Dự báo \nchốt]] <>\"\",IF(Dữ_liệu_khách_hàng_tiềm_năng[[#This Row],[Dự báo \nchốt]] = \"Tháng Hai\",Dữ_liệu_khách_hàng_tiềm_năng[Dự báo \ntheo trọng số],0),\"\"),\"\")","v":""},{"$f":"IFERROR(IF(Dữ_liệu_khách_hàng_tiềm_năng[[#This Row],[Dự báo \nchốt]] <>\"\",IF(Dữ_liệu_khách_hàng_tiềm_năng[[#This Row],[Dự báo \nchốt]] = \"Tháng Ba\",Dữ_liệu_khách_hàng_tiềm_năng[Dự báo \ntheo trọng số],0),\"\"),\"\")","v":""},{"$f":"IFERROR(IF(Dữ_liệu_khách_hàng_tiềm_năng[[#This Row],[Dự báo \nchốt]] <>\"\",IF(Dữ_liệu_khách_hàng_tiềm_năng[[#This Row],[Dự báo \nchốt]] = \"Dự báo\",Dữ_liệu_khách_hàng_tiềm_năng[Dự báo \ntheo trọng số],0),\"\"),\"\")","v":""},{"$f":"IFERROR(IF(Dữ_liệu_khách_hàng_tiềm_năng[[#This Row],[Dự báo \nchốt]] <>\"\",IF(Dữ_liệu_khách_hàng_tiềm_năng[[#This Row],[Dự báo \nchốt]] = \"Dự báo\",Dữ_liệu_khách_hàng_tiềm_năng[Dự báo \ntheo trọng số],0),\"\"),\"\")","v":""},{"$f":"IFERROR(IF(Dữ_liệu_khách_hàng_tiềm_năng[[#This Row],[Dự báo \nchốt]] <>\"\",IF(Dữ_liệu_khách_hàng_tiềm_năng[[#This Row],[Dự báo \nchốt]] = \"Dự báo\",Dữ_liệu_khách_hàng_tiềm_năng[Dự báo \ntheo trọng số],0),\"\"),\"\")","v":""},{"$f":"IFERROR(IF(Dữ_liệu_khách_hàng_tiềm_năng[[#This Row],[Dự báo \nchốt]] <>\"\",IF(Dữ_liệu_khách_hàng_tiềm_năng[[#This Row],[Dự báo \nchốt]] = \"July\",Dữ_liệu_khách_hàng_tiềm_năng[Dự báo \ntheo trọng số],0),\"\"),\"\")","v":""},{"$f":"IFERROR(IF(Dữ_liệu_khách_hàng_tiềm_năng[[#This Row],[Dự báo \nchốt]] <>\"\",IF(Dữ_liệu_khách_hàng_tiềm_năng[[#This Row],[Dự báo \nchốt]] = \"Dự báo\",Dữ_liệu_khách_hàng_tiềm_năng[Dự báo \ntheo trọng số],0),\"\"),\"\")","v":""},{"$f":"IFERROR(IF(Dữ_liệu_khách_hàng_tiềm_năng[[#This Row],[Dự báo \nchốt]] <>\"\",IF(Dữ_liệu_khách_hàng_tiềm_năng[[#This Row],[Dự báo \nchốt]] = \"Dự báo\",Dữ_liệu_khách_hàng_tiềm_năng[Dự báo \ntheo trọng số],0),\"\"),\"\")","v":""},{"$f":"IFERROR(IF(Dữ_liệu_khách_hàng_tiềm_năng[[#This Row],[Dự báo \nchốt]] <>\"\",IF(Dữ_liệu_khách_hàng_tiềm_năng[[#This Row],[Dự báo \nchốt]] = \"Dự báo\",Dữ_liệu_khách_hàng_tiềm_năng[Dự báo \ntheo trọng số],0),\"\"),\"\")","v":""},{"$f":"IFERROR(IF(Dữ_liệu_khách_hàng_tiềm_năng[[#This Row],[Dự báo \nchốt]] <>\"\",IF(Dữ_liệu_khách_hàng_tiềm_năng[[#This Row],[Dự báo \nchốt]] = \"Dự báo\",Dữ_liệu_khách_hàng_tiềm_năng[Dự báo \ntheo trọng số],0),\"\"),\"\")","v":""},{"$f":"IFERROR(IF(Dữ_liệu_khách_hàng_tiềm_năng[[#This Row],[Dự báo \nchốt]] <>\"\",IF(Dữ_liệu_khách_hàng_tiềm_năng[[#This Row],[Dự báo \nchốt]] = \"Dự báo\",Dữ_liệu_khách_hàng_tiềm_năng[Dự báo \ntheo trọng số],0),\"\"),\"\")","v":""}]
[null,{"$f":"IFERROR(IF(AND(Dữ_liệu_khách_hàng_tiềm_năng[[#This Row],[Tên khách hàng tiềm năng]] <> \"\", ROW(Doanh_số_dự_báo[Tên khách hàng tiềm năng])<>Mục_nhập_cuối),Dữ_liệu_khách_hàng_tiềm_năng[Tên khách hàng tiềm năng], \"\"),\"\")","v":""},{"$f":"IFERROR(IF(Dữ_liệu_khách_hàng_tiềm_năng[[#This Row],[Dự báo \nchốt]] <>\"\",IF(Dữ_liệu_khách_hàng_tiềm_năng[[#This Row],[Dự báo \nchốt]]= \"Tháng Một\",Dữ_liệu_khách_hàng_tiềm_năng[Dự báo \ntheo trọng số],0),\"\"),\"\")","v":""},{"$f":"IFERROR(IF(Dữ_liệu_khách_hàng_tiềm_năng[[#This Row],[Dự báo \nchốt]] <>\"\",IF(Dữ_liệu_khách_hàng_tiềm_năng[[#This Row],[Dự báo \nchốt]] = \"Tháng Hai\",Dữ_liệu_khách_hàng_tiềm_năng[Dự báo \ntheo trọng số],0),\"\"),\"\")","v":""},{"$f":"IFERROR(IF(Dữ_liệu_khách_hàng_tiềm_năng[[#This Row],[Dự báo \nchốt]] <>\"\",IF(Dữ_liệu_khách_hàng_tiềm_năng[[#This Row],[Dự báo \nchốt]] = \"Tháng Ba\",Dữ_liệu_khách_hàng_tiềm_năng[Dự báo \ntheo trọng số],0),\"\"),\"\")","v":""},{"$f":"IFERROR(IF(Dữ_liệu_khách_hàng_tiềm_năng[[#This Row],[Dự báo \nchốt]] <>\"\",IF(Dữ_liệu_khách_hàng_tiềm_năng[[#This Row],[Dự báo \nchốt]] = \"Dự báo\",Dữ_liệu_khách_hàng_tiềm_năng[Dự báo \ntheo trọng số],0),\"\"),\"\")","v":""},{"$f":"IFERROR(IF(Dữ_liệu_khách_hàng_tiềm_năng[[#This Row],[Dự báo \nchốt]] <>\"\",IF(Dữ_liệu_khách_hàng_tiềm_năng[[#This Row],[Dự báo \nchốt]] = \"Dự báo\",Dữ_liệu_khách_hàng_tiềm_năng[Dự báo \ntheo trọng số],0),\"\"),\"\")","v":""},{"$f":"IFERROR(IF(Dữ_liệu_khách_hàng_tiềm_năng[[#This Row],[Dự báo \nchốt]] <>\"\",IF(Dữ_liệu_khách_hàng_tiềm_năng[[#This Row],[Dự báo \nchốt]] = \"Dự báo\",Dữ_liệu_khách_hàng_tiềm_năng[Dự báo \ntheo trọng số],0),\"\"),\"\")","v":""},{"$f":"IFERROR(IF(Dữ_liệu_khách_hàng_tiềm_năng[[#This Row],[Dự báo \nchốt]] <>\"\",IF(Dữ_liệu_khách_hàng_tiềm_năng[[#This Row],[Dự báo \nchốt]] = \"July\",Dữ_liệu_khách_hàng_tiềm_năng[Dự báo \ntheo trọng số],0),\"\"),\"\")","v":""},{"$f":"IFERROR(IF(Dữ_liệu_khách_hàng_tiềm_năng[[#This Row],[Dự báo \nchốt]] <>\"\",IF(Dữ_liệu_khách_hàng_tiềm_năng[[#This Row],[Dự báo \nchốt]] = \"Dự báo\",Dữ_liệu_khách_hàng_tiềm_năng[Dự báo \ntheo trọng số],0),\"\"),\"\")","v":""},{"$f":"IFERROR(IF(Dữ_liệu_khách_hàng_tiềm_năng[[#This Row],[Dự báo \nchốt]] <>\"\",IF(Dữ_liệu_khách_hàng_tiềm_năng[[#This Row],[Dự báo \nchốt]] = \"Dự báo\",Dữ_liệu_khách_hàng_tiềm_năng[Dự báo \ntheo trọng số],0),\"\"),\"\")","v":""},{"$f":"IFERROR(IF(Dữ_liệu_khách_hàng_tiềm_năng[[#This Row],[Dự báo \nchốt]] <>\"\",IF(Dữ_liệu_khách_hàng_tiềm_năng[[#This Row],[Dự báo \nchốt]] = \"Dự báo\",Dữ_liệu_khách_hàng_tiềm_năng[Dự báo \ntheo trọng số],0),\"\"),\"\")","v":""},{"$f":"IFERROR(IF(Dữ_liệu_khách_hàng_tiềm_năng[[#This Row],[Dự báo \nchốt]] <>\"\",IF(Dữ_liệu_khách_hàng_tiềm_năng[[#This Row],[Dự báo \nchốt]] = \"Dự báo\",Dữ_liệu_khách_hàng_tiềm_năng[Dự báo \ntheo trọng số],0),\"\"),\"\")","v":""},{"$f":"IFERROR(IF(Dữ_liệu_khách_hàng_tiềm_năng[[#This Row],[Dự báo \nchốt]] <>\"\",IF(Dữ_liệu_khách_hàng_tiềm_năng[[#This Row],[Dự báo \nchốt]] = \"Dự báo\",Dữ_liệu_khách_hàng_tiềm_năng[Dự báo \ntheo trọng số],0),\"\"),\"\")","v":""}]
[null,{"$f":"IFERROR(IF(AND(Dữ_liệu_khách_hàng_tiềm_năng[[#This Row],[Tên khách hàng tiềm năng]] <> \"\", ROW(Doanh_số_dự_báo[Tên khách hàng tiềm năng])<>Mục_nhập_cuối),Dữ_liệu_khách_hàng_tiềm_năng[Tên khách hàng tiềm năng], \"\"),\"\")","v":""},{"$f":"IFERROR(IF(Dữ_liệu_khách_hàng_tiềm_năng[[#This Row],[Dự báo \nchốt]] <>\"\",IF(Dữ_liệu_khách_hàng_tiềm_năng[[#This Row],[Dự báo \nchốt]]= \"Tháng Một\",Dữ_liệu_khách_hàng_tiềm_năng[Dự báo \ntheo trọng số],0),\"\"),\"\")","v":""},{"$f":"IFERROR(IF(Dữ_liệu_khách_hàng_tiềm_năng[[#This Row],[Dự báo \nchốt]] <>\"\",IF(Dữ_liệu_khách_hàng_tiềm_năng[[#This Row],[Dự báo \nchốt]] = \"Tháng Hai\",Dữ_liệu_khách_hàng_tiềm_năng[Dự báo \ntheo trọng số],0),\"\"),\"\")","v":""},{"$f":"IFERROR(IF(Dữ_liệu_khách_hàng_tiềm_năng[[#This Row],[Dự báo \nchốt]] <>\"\",IF(Dữ_liệu_khách_hàng_tiềm_năng[[#This Row],[Dự báo \nchốt]] = \"Tháng Ba\",Dữ_liệu_khách_hàng_tiềm_năng[Dự báo \ntheo trọng số],0),\"\"),\"\")","v":""},{"$f":"IFERROR(IF(Dữ_liệu_khách_hàng_tiềm_năng[[#This Row],[Dự báo \nchốt]] <>\"\",IF(Dữ_liệu_khách_hàng_tiềm_năng[[#This Row],[Dự báo \nchốt]] = \"Dự báo\",Dữ_liệu_khách_hàng_tiềm_năng[Dự báo \ntheo trọng số],0),\"\"),\"\")","v":""},{"$f":"IFERROR(IF(Dữ_liệu_khách_hàng_tiềm_năng[[#This Row],[Dự báo \nchốt]] <>\"\",IF(Dữ_liệu_khách_hàng_tiềm_năng[[#This Row],[Dự báo \nchốt]] = \"Dự báo\",Dữ_liệu_khách_hàng_tiềm_năng[Dự báo \ntheo trọng số],0),\"\"),\"\")","v":""},{"$f":"IFERROR(IF(Dữ_liệu_khách_hàng_tiềm_năng[[#This Row],[Dự báo \nchốt]] <>\"\",IF(Dữ_liệu_khách_hàng_tiềm_năng[[#This Row],[Dự báo \nchốt]] = \"Dự báo\",Dữ_liệu_khách_hàng_tiềm_năng[Dự báo \ntheo trọng số],0),\"\"),\"\")","v":""},{"$f":"IFERROR(IF(Dữ_liệu_khách_hàng_tiềm_năng[[#This Row],[Dự báo \nchốt]] <>\"\",IF(Dữ_liệu_khách_hàng_tiềm_năng[[#This Row],[Dự báo \nchốt]] = \"July\",Dữ_liệu_khách_hàng_tiềm_năng[Dự báo \ntheo trọng số],0),\"\"),\"\")","v":""},{"$f":"IFERROR(IF(Dữ_liệu_khách_hàng_tiềm_năng[[#This Row],[Dự báo \nchốt]] <>\"\",IF(Dữ_liệu_khách_hàng_tiềm_năng[[#This Row],[Dự báo \nchốt]] = \"Dự báo\",Dữ_liệu_khách_hàng_tiềm_năng[Dự báo \ntheo trọng số],0),\"\"),\"\")","v":""},{"$f":"IFERROR(IF(Dữ_liệu_khách_hàng_tiềm_năng[[#This Row],[Dự báo \nchốt]] <>\"\",IF(Dữ_liệu_khách_hàng_tiềm_năng[[#This Row],[Dự báo \nchốt]] = \"Dự báo\",Dữ_liệu_khách_hàng_tiềm_năng[Dự báo \ntheo trọng số],0),\"\"),\"\")","v":""},{"$f":"IFERROR(IF(Dữ_liệu_khách_hàng_tiềm_năng[[#This Row],[Dự báo \nchốt]] <>\"\",IF(Dữ_liệu_khách_hàng_tiềm_năng[[#This Row],[Dự báo \nchốt]] = \"Dự báo\",Dữ_liệu_khách_hàng_tiềm_năng[Dự báo \ntheo trọng số],0),\"\"),\"\")","v":""},{"$f":"IFERROR(IF(Dữ_liệu_khách_hàng_tiềm_năng[[#This Row],[Dự báo \nchốt]] <>\"\",IF(Dữ_liệu_khách_hàng_tiềm_năng[[#This Row],[Dự báo \nchốt]] = \"Dự báo\",Dữ_liệu_khách_hàng_tiềm_năng[Dự báo \ntheo trọng số],0),\"\"),\"\")","v":""},{"$f":"IFERROR(IF(Dữ_liệu_khách_hàng_tiềm_năng[[#This Row],[Dự báo \nchốt]] <>\"\",IF(Dữ_liệu_khách_hàng_tiềm_năng[[#This Row],[Dự báo \nchốt]] = \"Dự báo\",Dữ_liệu_khách_hàng_tiềm_năng[Dự báo \ntheo trọng số],0),\"\"),\"\")","v":""}]
[null,{"$f":"IFERROR(IF(AND(Dữ_liệu_khách_hàng_tiềm_năng[[#This Row],[Tên khách hàng tiềm năng]] <> \"\", ROW(Doanh_số_dự_báo[Tên khách hàng tiềm năng])<>Mục_nhập_cuối),Dữ_liệu_khách_hàng_tiềm_năng[Tên khách hàng tiềm năng], \"\"),\"\")","v":""},{"$f":"IFERROR(IF(Dữ_liệu_khách_hàng_tiềm_năng[[#This Row],[Dự báo \nchốt]] <>\"\",IF(Dữ_liệu_khách_hàng_tiềm_năng[[#This Row],[Dự báo \nchốt]]= \"Tháng Một\",Dữ_liệu_khách_hàng_tiềm_năng[Dự báo \ntheo trọng số],0),\"\"),\"\")","v":""},{"$f":"IFERROR(IF(Dữ_liệu_khách_hàng_tiềm_năng[[#This Row],[Dự báo \nchốt]] <>\"\",IF(Dữ_liệu_khách_hàng_tiềm_năng[[#This Row],[Dự báo \nchốt]] = \"Tháng Hai\",Dữ_liệu_khách_hàng_tiềm_năng[Dự báo \ntheo trọng số],0),\"\"),\"\")","v":""},{"$f":"IFERROR(IF(Dữ_liệu_khách_hàng_tiềm_năng[[#This Row],[Dự báo \nchốt]] <>\"\",IF(Dữ_liệu_khách_hàng_tiềm_năng[[#This Row],[Dự báo \nchốt]] = \"Tháng Ba\",Dữ_liệu_khách_hàng_tiềm_năng[Dự báo \ntheo trọng số],0),\"\"),\"\")","v":""},{"$f":"IFERROR(IF(Dữ_liệu_khách_hàng_tiềm_năng[[#This Row],[Dự báo \nchốt]] <>\"\",IF(Dữ_liệu_khách_hàng_tiềm_năng[[#This Row],[Dự báo \nchốt]] = \"Dự báo\",Dữ_liệu_khách_hàng_tiềm_năng[Dự báo \ntheo trọng số],0),\"\"),\"\")","v":""},{"$f":"IFERROR(IF(Dữ_liệu_khách_hàng_tiềm_năng[[#This Row],[Dự báo \nchốt]] <>\"\",IF(Dữ_liệu_khách_hàng_tiềm_năng[[#This Row],[Dự báo \nchốt]] = \"Dự báo\",Dữ_liệu_khách_hàng_tiềm_năng[Dự báo \ntheo trọng số],0),\"\"),\"\")","v":""},{"$f":"IFERROR(IF(Dữ_liệu_khách_hàng_tiềm_năng[[#This Row],[Dự báo \nchốt]] <>\"\",IF(Dữ_liệu_khách_hàng_tiềm_năng[[#This Row],[Dự báo \nchốt]] = \"Dự báo\",Dữ_liệu_khách_hàng_tiềm_năng[Dự báo \ntheo trọng số],0),\"\"),\"\")","v":""},{"$f":"IFERROR(IF(Dữ_liệu_khách_hàng_tiềm_năng[[#This Row],[Dự báo \nchốt]] <>\"\",IF(Dữ_liệu_khách_hàng_tiềm_năng[[#This Row],[Dự báo \nchốt]] = \"July\",Dữ_liệu_khách_hàng_tiềm_năng[Dự báo \ntheo trọng số],0),\"\"),\"\")","v":""},{"$f":"IFERROR(IF(Dữ_liệu_khách_hàng_tiềm_năng[[#This Row],[Dự báo \nchốt]] <>\"\",IF(Dữ_liệu_khách_hàng_tiềm_năng[[#This Row],[Dự báo \nchốt]] = \"Dự báo\",Dữ_liệu_khách_hàng_tiềm_năng[Dự báo \ntheo trọng số],0),\"\"),\"\")","v":""},{"$f":"IFERROR(IF(Dữ_liệu_khách_hàng_tiềm_năng[[#This Row],[Dự báo \nchốt]] <>\"\",IF(Dữ_liệu_khách_hàng_tiềm_năng[[#This Row],[Dự báo \nchốt]] = \"Dự báo\",Dữ_liệu_khách_hàng_tiềm_năng[Dự báo \ntheo trọng số],0),\"\"),\"\")","v":""},{"$f":"IFERROR(IF(Dữ_liệu_khách_hàng_tiềm_năng[[#This Row],[Dự báo \nchốt]] <>\"\",IF(Dữ_liệu_khách_hàng_tiềm_năng[[#This Row],[Dự báo \nchốt]] = \"Dự báo\",Dữ_liệu_khách_hàng_tiềm_năng[Dự báo \ntheo trọng số],0),\"\"),\"\")","v":""},{"$f":"IFERROR(IF(Dữ_liệu_khách_hàng_tiềm_năng[[#This Row],[Dự báo \nchốt]] <>\"\",IF(Dữ_liệu_khách_hàng_tiềm_năng[[#This Row],[Dự báo \nchốt]] = \"Dự báo\",Dữ_liệu_khách_hàng_tiềm_năng[Dự báo \ntheo trọng số],0),\"\"),\"\")","v":""},{"$f":"IFERROR(IF(Dữ_liệu_khách_hàng_tiềm_năng[[#This Row],[Dự báo \nchốt]] <>\"\",IF(Dữ_liệu_khách_hàng_tiềm_năng[[#This Row],[Dự báo \nchốt]] = \"Dự báo\",Dữ_liệu_khách_hàng_tiềm_năng[Dự báo \ntheo trọng số],0),\"\"),\"\")","v":""}]
[null,{"$f":"IFERROR(IF(AND(Dữ_liệu_khách_hàng_tiềm_năng[[#This Row],[Tên khách hàng tiềm năng]] <> \"\", ROW(Doanh_số_dự_báo[Tên khách hàng tiềm năng])<>Mục_nhập_cuối),Dữ_liệu_khách_hàng_tiềm_năng[Tên khách hàng tiềm năng], \"\"),\"\")","v":""},{"$f":"IFERROR(IF(Dữ_liệu_khách_hàng_tiềm_năng[[#This Row],[Dự báo \nchốt]] <>\"\",IF(Dữ_liệu_khách_hàng_tiềm_năng[[#This Row],[Dự báo \nchốt]]= \"Tháng Một\",Dữ_liệu_khách_hàng_tiềm_năng[Dự báo \ntheo trọng số],0),\"\"),\"\")","v":""},{"$f":"IFERROR(IF(Dữ_liệu_khách_hàng_tiềm_năng[[#This Row],[Dự báo \nchốt]] <>\"\",IF(Dữ_liệu_khách_hàng_tiềm_năng[[#This Row],[Dự báo \nchốt]] = \"Tháng Hai\",Dữ_liệu_khách_hàng_tiềm_năng[Dự báo \ntheo trọng số],0),\"\"),\"\")","v":""},{"$f":"IFERROR(IF(Dữ_liệu_khách_hàng_tiềm_năng[[#This Row],[Dự báo \nchốt]] <>\"\",IF(Dữ_liệu_khách_hàng_tiềm_năng[[#This Row],[Dự báo \nchốt]] = \"Tháng Ba\",Dữ_liệu_khách_hàng_tiềm_năng[Dự báo \ntheo trọng số],0),\"\"),\"\")","v":""},{"$f":"IFERROR(IF(Dữ_liệu_khách_hàng_tiềm_năng[[#This Row],[Dự báo \nchốt]] <>\"\",IF(Dữ_liệu_khách_hàng_tiềm_năng[[#This Row],[Dự báo \nchốt]] = \"Dự báo\",Dữ_liệu_khách_hàng_tiềm_năng[Dự báo \ntheo trọng số],0),\"\"),\"\")","v":""},{"$f":"IFERROR(IF(Dữ_liệu_khách_hàng_tiềm_năng[[#This Row],[Dự báo \nchốt]] <>\"\",IF(Dữ_liệu_khách_hàng_tiềm_năng[[#This Row],[Dự báo \nchốt]] = \"Dự báo\",Dữ_liệu_khách_hàng_tiềm_năng[Dự báo \ntheo trọng số],0),\"\"),\"\")","v":""},{"$f":"IFERROR(IF(Dữ_liệu_khách_hàng_tiềm_năng[[#This Row],[Dự báo \nchốt]] <>\"\",IF(Dữ_liệu_khách_hàng_tiềm_năng[[#This Row],[Dự báo \nchốt]] = \"Dự báo\",Dữ_liệu_khách_hàng_tiềm_năng[Dự báo \ntheo trọng số],0),\"\"),\"\")","v":""},{"$f":"IFERROR(IF(Dữ_liệu_khách_hàng_tiềm_năng[[#This Row],[Dự báo \nchốt]] <>\"\",IF(Dữ_liệu_khách_hàng_tiềm_năng[[#This Row],[Dự báo \nchốt]] = \"July\",Dữ_liệu_khách_hàng_tiềm_năng[Dự báo \ntheo trọng số],0),\"\"),\"\")","v":""},{"$f":"IFERROR(IF(Dữ_liệu_khách_hàng_tiềm_năng[[#This Row],[Dự báo \nchốt]] <>\"\",IF(Dữ_liệu_khách_hàng_tiềm_năng[[#This Row],[Dự báo \nchốt]] = \"Dự báo\",Dữ_liệu_khách_hàng_tiềm_năng[Dự báo \ntheo trọng số],0),\"\"),\"\")","v":""},{"$f":"IFERROR(IF(Dữ_liệu_khách_hàng_tiềm_năng[[#This Row],[Dự báo \nchốt]] <>\"\",IF(Dữ_liệu_khách_hàng_tiềm_năng[[#This Row],[Dự báo \nchốt]] = \"Dự báo\",Dữ_liệu_khách_hàng_tiềm_năng[Dự báo \ntheo trọng số],0),\"\"),\"\")","v":""},{"$f":"IFERROR(IF(Dữ_liệu_khách_hàng_tiềm_năng[[#This Row],[Dự báo \nchốt]] <>\"\",IF(Dữ_liệu_khách_hàng_tiềm_năng[[#This Row],[Dự báo \nchốt]] = \"Dự báo\",Dữ_liệu_khách_hàng_tiềm_năng[Dự báo \ntheo trọng số],0),\"\"),\"\")","v":""},{"$f":"IFERROR(IF(Dữ_liệu_khách_hàng_tiềm_năng[[#This Row],[Dự báo \nchốt]] <>\"\",IF(Dữ_liệu_khách_hàng_tiềm_năng[[#This Row],[Dự báo \nchốt]] = \"Dự báo\",Dữ_liệu_khách_hàng_tiềm_năng[Dự báo \ntheo trọng số],0),\"\"),\"\")","v":""},{"$f":"IFERROR(IF(Dữ_liệu_khách_hàng_tiềm_năng[[#This Row],[Dự báo \nchốt]] <>\"\",IF(Dữ_liệu_khách_hàng_tiềm_năng[[#This Row],[Dự báo \nchốt]] = \"Dự báo\",Dữ_liệu_khách_hàng_tiềm_năng[Dự báo \ntheo trọng số],0),\"\"),\"\")","v":""}]
[null,{"$f":"IFERROR(IF(AND(Dữ_liệu_khách_hàng_tiềm_năng[[#This Row],[Tên khách hàng tiềm năng]] <> \"\", ROW(Doanh_số_dự_báo[Tên khách hàng tiềm năng])<>Mục_nhập_cuối),Dữ_liệu_khách_hàng_tiềm_năng[Tên khách hàng tiềm năng], \"\"),\"\")","v":""},{"$f":"IFERROR(IF(Dữ_liệu_khách_hàng_tiềm_năng[[#This Row],[Dự báo \nchốt]] <>\"\",IF(Dữ_liệu_khách_hàng_tiềm_năng[[#This Row],[Dự báo \nchốt]]= \"Tháng Một\",Dữ_liệu_khách_hàng_tiềm_năng[Dự báo \ntheo trọng số],0),\"\"),\"\")","v":""},{"$f":"IFERROR(IF(Dữ_liệu_khách_hàng_tiềm_năng[[#This Row],[Dự báo \nchốt]] <>\"\",IF(Dữ_liệu_khách_hàng_tiềm_năng[[#This Row],[Dự báo \nchốt]] = \"Tháng Hai\",Dữ_liệu_khách_hàng_tiềm_năng[Dự báo \ntheo trọng số],0),\"\"),\"\")","v":""},{"$f":"IFERROR(IF(Dữ_liệu_khách_hàng_tiềm_năng[[#This Row],[Dự báo \nchốt]] <>\"\",IF(Dữ_liệu_khách_hàng_tiềm_năng[[#This Row],[Dự báo \nchốt]] = \"Tháng Ba\",Dữ_liệu_khách_hàng_tiềm_năng[Dự báo \ntheo trọng số],0),\"\"),\"\")","v":""},{"$f":"IFERROR(IF(Dữ_liệu_khách_hàng_tiềm_năng[[#This Row],[Dự báo \nchốt]] <>\"\",IF(Dữ_liệu_khách_hàng_tiềm_năng[[#This Row],[Dự báo \nchốt]] = \"Dự báo\",Dữ_liệu_khách_hàng_tiềm_năng[Dự báo \ntheo trọng số],0),\"\"),\"\")","v":""},{"$f":"IFERROR(IF(Dữ_liệu_khách_hàng_tiềm_năng[[#This Row],[Dự báo \nchốt]] <>\"\",IF(Dữ_liệu_khách_hàng_tiềm_năng[[#This Row],[Dự báo \nchốt]] = \"Dự báo\",Dữ_liệu_khách_hàng_tiềm_năng[Dự báo \ntheo trọng số],0),\"\"),\"\")","v":""},{"$f":"IFERROR(IF(Dữ_liệu_khách_hàng_tiềm_năng[[#This Row],[Dự báo \nchốt]] <>\"\",IF(Dữ_liệu_khách_hàng_tiềm_năng[[#This Row],[Dự báo \nchốt]] = \"Dự báo\",Dữ_liệu_khách_hàng_tiềm_năng[Dự báo \ntheo trọng số],0),\"\"),\"\")","v":""},{"$f":"IFERROR(IF(Dữ_liệu_khách_hàng_tiềm_năng[[#This Row],[Dự báo \nchốt]] <>\"\",IF(Dữ_liệu_khách_hàng_tiềm_năng[[#This Row],[Dự báo \nchốt]] = \"July\",Dữ_liệu_khách_hàng_tiềm_năng[Dự báo \ntheo trọng số],0),\"\"),\"\")","v":""},{"$f":"IFERROR(IF(Dữ_liệu_khách_hàng_tiềm_năng[[#This Row],[Dự báo \nchốt]] <>\"\",IF(Dữ_liệu_khách_hàng_tiềm_năng[[#This Row],[Dự báo \nchốt]] = \"Dự báo\",Dữ_liệu_khách_hàng_tiềm_năng[Dự báo \ntheo trọng số],0),\"\"),\"\")","v":""},{"$f":"IFERROR(IF(Dữ_liệu_khách_hàng_tiềm_năng[[#This Row],[Dự báo \nchốt]] <>\"\",IF(Dữ_liệu_khách_hàng_tiềm_năng[[#This Row],[Dự báo \nchốt]] = \"Dự báo\",Dữ_liệu_khách_hàng_tiềm_năng[Dự báo \ntheo trọng số],0),\"\"),\"\")","v":""},{"$f":"IFERROR(IF(Dữ_liệu_khách_hàng_tiềm_năng[[#This Row],[Dự báo \nchốt]] <>\"\",IF(Dữ_liệu_khách_hàng_tiềm_năng[[#This Row],[Dự báo \nchốt]] = \"Dự báo\",Dữ_liệu_khách_hàng_tiềm_năng[Dự báo \ntheo trọng số],0),\"\"),\"\")","v":""},{"$f":"IFERROR(IF(Dữ_liệu_khách_hàng_tiềm_năng[[#This Row],[Dự báo \nchốt]] <>\"\",IF(Dữ_liệu_khách_hàng_tiềm_năng[[#This Row],[Dự báo \nchốt]] = \"Dự báo\",Dữ_liệu_khách_hàng_tiềm_năng[Dự báo \ntheo trọng số],0),\"\"),\"\")","v":""},{"$f":"IFERROR(IF(Dữ_liệu_khách_hàng_tiềm_năng[[#This Row],[Dự báo \nchốt]] <>\"\",IF(Dữ_liệu_khách_hàng_tiềm_năng[[#This Row],[Dự báo \nchốt]] = \"Dự báo\",Dữ_liệu_khách_hàng_tiềm_năng[Dự báo \ntheo trọng số],0),\"\"),\"\")","v":""}]
[null,{"$f":"IFERROR(IF(AND(Dữ_liệu_khách_hàng_tiềm_năng[[#This Row],[Tên khách hàng tiềm năng]] <> \"\", ROW(Doanh_số_dự_báo[Tên khách hàng tiềm năng])<>Mục_nhập_cuối),Dữ_liệu_khách_hàng_tiềm_năng[Tên khách hàng tiềm năng], \"\"),\"\")","v":""},{"$f":"IFERROR(IF(Dữ_liệu_khách_hàng_tiềm_năng[[#This Row],[Dự báo \nchốt]] <>\"\",IF(Dữ_liệu_khách_hàng_tiềm_năng[[#This Row],[Dự báo \nchốt]]= \"Tháng Một\",Dữ_liệu_khách_hàng_tiềm_năng[Dự báo \ntheo trọng số],0),\"\"),\"\")","v":""},{"$f":"IFERROR(IF(Dữ_liệu_khách_hàng_tiềm_năng[[#This Row],[Dự báo \nchốt]] <>\"\",IF(Dữ_liệu_khách_hàng_tiềm_năng[[#This Row],[Dự báo \nchốt]] = \"Tháng Hai\",Dữ_liệu_khách_hàng_tiềm_năng[Dự báo \ntheo trọng số],0),\"\"),\"\")","v":""},{"$f":"IFERROR(IF(Dữ_liệu_khách_hàng_tiềm_năng[[#This Row],[Dự báo \nchốt]] <>\"\",IF(Dữ_liệu_khách_hàng_tiềm_năng[[#This Row],[Dự báo \nchốt]] = \"Tháng Ba\",Dữ_liệu_khách_hàng_tiềm_năng[Dự báo \ntheo trọng số],0),\"\"),\"\")","v":""},{"$f":"IFERROR(IF(Dữ_liệu_khách_hàng_tiềm_năng[[#This Row],[Dự báo \nchốt]] <>\"\",IF(Dữ_liệu_khách_hàng_tiềm_năng[[#This Row],[Dự báo \nchốt]] = \"Dự báo\",Dữ_liệu_khách_hàng_tiềm_năng[Dự báo \ntheo trọng số],0),\"\"),\"\")","v":""},{"$f":"IFERROR(IF(Dữ_liệu_khách_hàng_tiềm_năng[[#This Row],[Dự báo \nchốt]] <>\"\",IF(Dữ_liệu_khách_hàng_tiềm_năng[[#This Row],[Dự báo \nchốt]] = \"Dự báo\",Dữ_liệu_khách_hàng_tiềm_năng[Dự báo \ntheo trọng số],0),\"\"),\"\")","v":""},{"$f":"IFERROR(IF(Dữ_liệu_khách_hàng_tiềm_năng[[#This Row],[Dự báo \nchốt]] <>\"\",IF(Dữ_liệu_khách_hàng_tiềm_năng[[#This Row],[Dự báo \nchốt]] = \"Dự báo\",Dữ_liệu_khách_hàng_tiềm_năng[Dự báo \ntheo trọng số],0),\"\"),\"\")","v":""},{"$f":"IFERROR(IF(Dữ_liệu_khách_hàng_tiềm_năng[[#This Row],[Dự báo \nchốt]] <>\"\",IF(Dữ_liệu_khách_hàng_tiềm_năng[[#This Row],[Dự báo \nchốt]] = \"July\",Dữ_liệu_khách_hàng_tiềm_năng[Dự báo \ntheo trọng số],0),\"\"),\"\")","v":""},{"$f":"IFERROR(IF(Dữ_liệu_khách_hàng_tiềm_năng[[#This Row],[Dự báo \nchốt]] <>\"\",IF(Dữ_liệu_khách_hàng_tiềm_năng[[#This Row],[Dự báo \nchốt]] = \"Dự báo\",Dữ_liệu_khách_hàng_tiềm_năng[Dự báo \ntheo trọng số],0),\"\"),\"\")","v":""},{"$f":"IFERROR(IF(Dữ_liệu_khách_hàng_tiềm_năng[[#This Row],[Dự báo \nchốt]] <>\"\",IF(Dữ_liệu_khách_hàng_tiềm_năng[[#This Row],[Dự báo \nchốt]] = \"Dự báo\",Dữ_liệu_khách_hàng_tiềm_năng[Dự báo \ntheo trọng số],0),\"\"),\"\")","v":""},{"$f":"IFERROR(IF(Dữ_liệu_khách_hàng_tiềm_năng[[#This Row],[Dự báo \nchốt]] <>\"\",IF(Dữ_liệu_khách_hàng_tiềm_năng[[#This Row],[Dự báo \nchốt]] = \"Dự báo\",Dữ_liệu_khách_hàng_tiềm_năng[Dự báo \ntheo trọng số],0),\"\"),\"\")","v":""},{"$f":"IFERROR(IF(Dữ_liệu_khách_hàng_tiềm_năng[[#This Row],[Dự báo \nchốt]] <>\"\",IF(Dữ_liệu_khách_hàng_tiềm_năng[[#This Row],[Dự báo \nchốt]] = \"Dự báo\",Dữ_liệu_khách_hàng_tiềm_năng[Dự báo \ntheo trọng số],0),\"\"),\"\")","v":""},{"$f":"IFERROR(IF(Dữ_liệu_khách_hàng_tiềm_năng[[#This Row],[Dự báo \nchốt]] <>\"\",IF(Dữ_liệu_khách_hàng_tiềm_năng[[#This Row],[Dự báo \nchốt]] = \"Dự báo\",Dữ_liệu_khách_hàng_tiềm_năng[Dự báo \ntheo trọng số],0),\"\"),\"\")","v":""}]
[null,{"$f":"IFERROR(IF(AND(Dữ_liệu_khách_hàng_tiềm_năng[[#This Row],[Tên khách hàng tiềm năng]] <> \"\", ROW(Doanh_số_dự_báo[Tên khách hàng tiềm năng])<>Mục_nhập_cuối),Dữ_liệu_khách_hàng_tiềm_năng[Tên khách hàng tiềm năng], \"\"),\"\")","v":""},{"$f":"IFERROR(IF(Dữ_liệu_khách_hàng_tiềm_năng[[#This Row],[Dự báo \nchốt]] <>\"\",IF(Dữ_liệu_khách_hàng_tiềm_năng[[#This Row],[Dự báo \nchốt]]= \"Tháng Một\",Dữ_liệu_khách_hàng_tiềm_năng[Dự báo \ntheo trọng số],0),\"\"),\"\")","v":""},{"$f":"IFERROR(IF(Dữ_liệu_khách_hàng_tiềm_năng[[#This Row],[Dự báo \nchốt]] <>\"\",IF(Dữ_liệu_khách_hàng_tiềm_năng[[#This Row],[Dự báo \nchốt]] = \"Tháng Hai\",Dữ_liệu_khách_hàng_tiềm_năng[Dự báo \ntheo trọng số],0),\"\"),\"\")","v":""},{"$f":"IFERROR(IF(Dữ_liệu_khách_hàng_tiềm_năng[[#This Row],[Dự báo \nchốt]] <>\"\",IF(Dữ_liệu_khách_hàng_tiềm_năng[[#This Row],[Dự báo \nchốt]] = \"Tháng Ba\",Dữ_liệu_khách_hàng_tiềm_năng[Dự báo \ntheo trọng số],0),\"\"),\"\")","v":""},{"$f":"IFERROR(IF(Dữ_liệu_khách_hàng_tiềm_năng[[#This Row],[Dự báo \nchốt]] <>\"\",IF(Dữ_liệu_khách_hàng_tiềm_năng[[#This Row],[Dự báo \nchốt]] = \"Dự báo\",Dữ_liệu_khách_hàng_tiềm_năng[Dự báo \ntheo trọng số],0),\"\"),\"\")","v":""},{"$f":"IFERROR(IF(Dữ_liệu_khách_hàng_tiềm_năng[[#This Row],[Dự báo \nchốt]] <>\"\",IF(Dữ_liệu_khách_hàng_tiềm_năng[[#This Row],[Dự báo \nchốt]] = \"Dự báo\",Dữ_liệu_khách_hàng_tiềm_năng[Dự báo \ntheo trọng số],0),\"\"),\"\")","v":""},{"$f":"IFERROR(IF(Dữ_liệu_khách_hàng_tiềm_năng[[#This Row],[Dự báo \nchốt]] <>\"\",IF(Dữ_liệu_khách_hàng_tiềm_năng[[#This Row],[Dự báo \nchốt]] = \"Dự báo\",Dữ_liệu_khách_hàng_tiềm_năng[Dự báo \ntheo trọng số],0),\"\"),\"\")","v":""},{"$f":"IFERROR(IF(Dữ_liệu_khách_hàng_tiềm_năng[[#This Row],[Dự báo \nchốt]] <>\"\",IF(Dữ_liệu_khách_hàng_tiềm_năng[[#This Row],[Dự báo \nchốt]] = \"July\",Dữ_liệu_khách_hàng_tiềm_năng[Dự báo \ntheo trọng số],0),\"\"),\"\")","v":""},{"$f":"IFERROR(IF(Dữ_liệu_khách_hàng_tiềm_năng[[#This Row],[Dự báo \nchốt]] <>\"\",IF(Dữ_liệu_khách_hàng_tiềm_năng[[#This Row],[Dự báo \nchốt]] = \"Dự báo\",Dữ_liệu_khách_hàng_tiềm_năng[Dự báo \ntheo trọng số],0),\"\"),\"\")","v":""},{"$f":"IFERROR(IF(Dữ_liệu_khách_hàng_tiềm_năng[[#This Row],[Dự báo \nchốt]] <>\"\",IF(Dữ_liệu_khách_hàng_tiềm_năng[[#This Row],[Dự báo \nchốt]] = \"Dự báo\",Dữ_liệu_khách_hàng_tiềm_năng[Dự báo \ntheo trọng số],0),\"\"),\"\")","v":""},{"$f":"IFERROR(IF(Dữ_liệu_khách_hàng_tiềm_năng[[#This Row],[Dự báo \nchốt]] <>\"\",IF(Dữ_liệu_khách_hàng_tiềm_năng[[#This Row],[Dự báo \nchốt]] = \"Dự báo\",Dữ_liệu_khách_hàng_tiềm_năng[Dự báo \ntheo trọng số],0),\"\"),\"\")","v":""},{"$f":"IFERROR(IF(Dữ_liệu_khách_hàng_tiềm_năng[[#This Row],[Dự báo \nchốt]] <>\"\",IF(Dữ_liệu_khách_hàng_tiềm_năng[[#This Row],[Dự báo \nchốt]] = \"Dự báo\",Dữ_liệu_khách_hàng_tiềm_năng[Dự báo \ntheo trọng số],0),\"\"),\"\")","v":""},{"$f":"IFERROR(IF(Dữ_liệu_khách_hàng_tiềm_năng[[#This Row],[Dự báo \nchốt]] <>\"\",IF(Dữ_liệu_khách_hàng_tiềm_năng[[#This Row],[Dự báo \nchốt]] = \"Dự báo\",Dữ_liệu_khách_hàng_tiềm_năng[Dự báo \ntheo trọng số],0),\"\"),\"\")","v":""}]
[null,{"$f":"IFERROR(IF(AND(Dữ_liệu_khách_hàng_tiềm_năng[[#This Row],[Tên khách hàng tiềm năng]] <> \"\", ROW(Doanh_số_dự_báo[Tên khách hàng tiềm năng])<>Mục_nhập_cuối),Dữ_liệu_khách_hàng_tiềm_năng[Tên khách hàng tiềm năng], \"\"),\"\")","v":""},{"$f":"IFERROR(IF(Dữ_liệu_khách_hàng_tiềm_năng[[#This Row],[Dự báo \nchốt]] <>\"\",IF(Dữ_liệu_khách_hàng_tiềm_năng[[#This Row],[Dự báo \nchốt]]= \"Tháng Một\",Dữ_liệu_khách_hàng_tiềm_năng[Dự báo \ntheo trọng số],0),\"\"),\"\")","v":""},{"$f":"IFERROR(IF(Dữ_liệu_khách_hàng_tiềm_năng[[#This Row],[Dự báo \nchốt]] <>\"\",IF(Dữ_liệu_khách_hàng_tiềm_năng[[#This Row],[Dự báo \nchốt]] = \"Tháng Hai\",Dữ_liệu_khách_hàng_tiềm_năng[Dự báo \ntheo trọng số],0),\"\"),\"\")","v":""},{"$f":"IFERROR(IF(Dữ_liệu_khách_hàng_tiềm_năng[[#This Row],[Dự báo \nchốt]] <>\"\",IF(Dữ_liệu_khách_hàng_tiềm_năng[[#This Row],[Dự báo \nchốt]] = \"Tháng Ba\",Dữ_liệu_khách_hàng_tiềm_năng[Dự báo \ntheo trọng số],0),\"\"),\"\")","v":""},{"$f":"IFERROR(IF(Dữ_liệu_khách_hàng_tiềm_năng[[#This Row],[Dự báo \nchốt]] <>\"\",IF(Dữ_liệu_khách_hàng_tiềm_năng[[#This Row],[Dự báo \nchốt]] = \"Dự báo\",Dữ_liệu_khách_hàng_tiềm_năng[Dự báo \ntheo trọng số],0),\"\"),\"\")","v":""},{"$f":"IFERROR(IF(Dữ_liệu_khách_hàng_tiềm_năng[[#This Row],[Dự báo \nchốt]] <>\"\",IF(Dữ_liệu_khách_hàng_tiềm_năng[[#This Row],[Dự báo \nchốt]] = \"Dự báo\",Dữ_liệu_khách_hàng_tiềm_năng[Dự báo \ntheo trọng số],0),\"\"),\"\")","v":""},{"$f":"IFERROR(IF(Dữ_liệu_khách_hàng_tiềm_năng[[#This Row],[Dự báo \nchốt]] <>\"\",IF(Dữ_liệu_khách_hàng_tiềm_năng[[#This Row],[Dự báo \nchốt]] = \"Dự báo\",Dữ_liệu_khách_hàng_tiềm_năng[Dự báo \ntheo trọng số],0),\"\"),\"\")","v":""},{"$f":"IFERROR(IF(Dữ_liệu_khách_hàng_tiềm_năng[[#This Row],[Dự báo \nchốt]] <>\"\",IF(Dữ_liệu_khách_hàng_tiềm_năng[[#This Row],[Dự báo \nchốt]] = \"July\",Dữ_liệu_khách_hàng_tiềm_năng[Dự báo \ntheo trọng số],0),\"\"),\"\")","v":""},{"$f":"IFERROR(IF(Dữ_liệu_khách_hàng_tiềm_năng[[#This Row],[Dự báo \nchốt]] <>\"\",IF(Dữ_liệu_khách_hàng_tiềm_năng[[#This Row],[Dự báo \nchốt]] = \"Dự báo\",Dữ_liệu_khách_hàng_tiềm_năng[Dự báo \ntheo trọng số],0),\"\"),\"\")","v":""},{"$f":"IFERROR(IF(Dữ_liệu_khách_hàng_tiềm_năng[[#This Row],[Dự báo \nchốt]] <>\"\",IF(Dữ_liệu_khách_hàng_tiềm_năng[[#This Row],[Dự báo \nchốt]] = \"Dự báo\",Dữ_liệu_khách_hàng_tiềm_năng[Dự báo \ntheo trọng số],0),\"\"),\"\")","v":""},{"$f":"IFERROR(IF(Dữ_liệu_khách_hàng_tiềm_năng[[#This Row],[Dự báo \nchốt]] <>\"\",IF(Dữ_liệu_khách_hàng_tiềm_năng[[#This Row],[Dự báo \nchốt]] = \"Dự báo\",Dữ_liệu_khách_hàng_tiềm_năng[Dự báo \ntheo trọng số],0),\"\"),\"\")","v":""},{"$f":"IFERROR(IF(Dữ_liệu_khách_hàng_tiềm_năng[[#This Row],[Dự báo \nchốt]] <>\"\",IF(Dữ_liệu_khách_hàng_tiềm_năng[[#This Row],[Dự báo \nchốt]] = \"Dự báo\",Dữ_liệu_khách_hàng_tiềm_năng[Dự báo \ntheo trọng số],0),\"\"),\"\")","v":""},{"$f":"IFERROR(IF(Dữ_liệu_khách_hàng_tiềm_năng[[#This Row],[Dự báo \nchốt]] <>\"\",IF(Dữ_liệu_khách_hàng_tiềm_năng[[#This Row],[Dự báo \nchốt]] = \"Dự báo\",Dữ_liệu_khách_hàng_tiềm_năng[Dự báo \ntheo trọng số],0),\"\"),\"\")","v":""}]
[null,{"$f":"IFERROR(IF(AND(Dữ_liệu_khách_hàng_tiềm_năng[[#This Row],[Tên khách hàng tiềm năng]] <> \"\", ROW(Doanh_số_dự_báo[Tên khách hàng tiềm năng])<>Mục_nhập_cuối),Dữ_liệu_khách_hàng_tiềm_năng[Tên khách hàng tiềm năng], \"\"),\"\")","v":""},{"$f":"IFERROR(IF(Dữ_liệu_khách_hàng_tiềm_năng[[#This Row],[Dự báo \nchốt]] <>\"\",IF(Dữ_liệu_khách_hàng_tiềm_năng[[#This Row],[Dự báo \nchốt]]= \"Tháng Một\",Dữ_liệu_khách_hàng_tiềm_năng[Dự báo \ntheo trọng số],0),\"\"),\"\")","v":""},{"$f":"IFERROR(IF(Dữ_liệu_khách_hàng_tiềm_năng[[#This Row],[Dự báo \nchốt]] <>\"\",IF(Dữ_liệu_khách_hàng_tiềm_năng[[#This Row],[Dự báo \nchốt]] = \"Tháng Hai\",Dữ_liệu_khách_hàng_tiềm_năng[Dự báo \ntheo trọng số],0),\"\"),\"\")","v":""},{"$f":"IFERROR(IF(Dữ_liệu_khách_hàng_tiềm_năng[[#This Row],[Dự báo \nchốt]] <>\"\",IF(Dữ_liệu_khách_hàng_tiềm_năng[[#This Row],[Dự báo \nchốt]] = \"Tháng Ba\",Dữ_liệu_khách_hàng_tiềm_năng[Dự báo \ntheo trọng số],0),\"\"),\"\")","v":""},{"$f":"IFERROR(IF(Dữ_liệu_khách_hàng_tiềm_năng[[#This Row],[Dự báo \nchốt]] <>\"\",IF(Dữ_liệu_khách_hàng_tiềm_năng[[#This Row],[Dự báo \nchốt]] = \"Dự báo\",Dữ_liệu_khách_hàng_tiềm_năng[Dự báo \ntheo trọng số],0),\"\"),\"\")","v":""},{"$f":"IFERROR(IF(Dữ_liệu_khách_hàng_tiềm_năng[[#This Row],[Dự báo \nchốt]] <>\"\",IF(Dữ_liệu_khách_hàng_tiềm_năng[[#This Row],[Dự báo \nchốt]] = \"Dự báo\",Dữ_liệu_khách_hàng_tiềm_năng[Dự báo \ntheo trọng số],0),\"\"),\"\")","v":""},{"$f":"IFERROR(IF(Dữ_liệu_khách_hàng_tiềm_năng[[#This Row],[Dự báo \nchốt]] <>\"\",IF(Dữ_liệu_khách_hàng_tiềm_năng[[#This Row],[Dự báo \nchốt]] = \"Dự báo\",Dữ_liệu_khách_hàng_tiềm_năng[Dự báo \ntheo trọng số],0),\"\"),\"\")","v":""},{"$f":"IFERROR(IF(Dữ_liệu_khách_hàng_tiềm_năng[[#This Row],[Dự báo \nchốt]] <>\"\",IF(Dữ_liệu_khách_hàng_tiềm_năng[[#This Row],[Dự báo \nchốt]] = \"July\",Dữ_liệu_khách_hàng_tiềm_năng[Dự báo \ntheo trọng số],0),\"\"),\"\")","v":""},{"$f":"IFERROR(IF(Dữ_liệu_khách_hàng_tiềm_năng[[#This Row],[Dự báo \nchốt]] <>\"\",IF(Dữ_liệu_khách_hàng_tiềm_năng[[#This Row],[Dự báo \nchốt]] = \"Dự báo\",Dữ_liệu_khách_hàng_tiềm_năng[Dự báo \ntheo trọng số],0),\"\"),\"\")","v":""},{"$f":"IFERROR(IF(Dữ_liệu_khách_hàng_tiềm_năng[[#This Row],[Dự báo \nchốt]] <>\"\",IF(Dữ_liệu_khách_hàng_tiềm_năng[[#This Row],[Dự báo \nchốt]] = \"Dự báo\",Dữ_liệu_khách_hàng_tiềm_năng[Dự báo \ntheo trọng số],0),\"\"),\"\")","v":""},{"$f":"IFERROR(IF(Dữ_liệu_khách_hàng_tiềm_năng[[#This Row],[Dự báo \nchốt]] <>\"\",IF(Dữ_liệu_khách_hàng_tiềm_năng[[#This Row],[Dự báo \nchốt]] = \"Dự báo\",Dữ_liệu_khách_hàng_tiềm_năng[Dự báo \ntheo trọng số],0),\"\"),\"\")","v":""},{"$f":"IFERROR(IF(Dữ_liệu_khách_hàng_tiềm_năng[[#This Row],[Dự báo \nchốt]] <>\"\",IF(Dữ_liệu_khách_hàng_tiềm_năng[[#This Row],[Dự báo \nchốt]] = \"Dự báo\",Dữ_liệu_khách_hàng_tiềm_năng[Dự báo \ntheo trọng số],0),\"\"),\"\")","v":""},{"$f":"IFERROR(IF(Dữ_liệu_khách_hàng_tiềm_năng[[#This Row],[Dự báo \nchốt]] <>\"\",IF(Dữ_liệu_khách_hàng_tiềm_năng[[#This Row],[Dự báo \nchốt]] = \"Dự báo\",Dữ_liệu_khách_hàng_tiềm_năng[Dự báo \ntheo trọng số],0),\"\"),\"\")","v":""}]
[null,"Tổng cộng",{"$f":"SUBTOTAL(109,Doanh_số_dự_báo[Dự báo \nTháng Một])","v":{"v":270000,"d":"270,000 ₫"}},{"$f":"SUBTOTAL(109,Doanh_số_dự_báo[Dự báo \nTháng Hai])","v":{"v":20000,"d":"20,000 ₫"}},{"$f":"SUBTOTAL(109,Doanh_số_dự_báo[Dự báo \nTháng Ba])","v":{"v":20000,"d":"20,000 ₫"}},{"$f":"SUBTOTAL(109,Doanh_số_dự_báo[Dự báo \nTháng Tư])","v":{"v":0,"d":"0 ₫"}},{"$f":"SUBTOTAL(109,Doanh_số_dự_báo[Dự báo \nTháng Năm])","v":{"v":0,"d":"0 ₫"}},{"$f":"SUBTOTAL(109,Doanh_số_dự_báo[Dự báo \nTháng Sáu])","v":{"v":0,"d":"0 ₫"}},{"$f":"SUBTOTAL(109,Doanh_số_dự_báo[Dự báo \nTháng Bảy])","v":{"v":0,"d":"0 ₫"}},{"$f":"SUBTOTAL(109,Doanh_số_dự_báo[Dự báo \nTháng Tám])","v":{"v":0,"d":"0 ₫"}},{"$f":"SUBTOTAL(109,Doanh_số_dự_báo[Dự báo \nTháng Chín])","v":{"v":0,"d":"0 ₫"}},{"$f":"SUBTOTAL(109,Doanh_số_dự_báo[Dự báo \nTháng Mười])","v":{"v":0,"d":"0 ₫"}},{"$f":"SUBTOTAL(109,Doanh_số_dự_báo[Dự báo \nTháng Mười Một])","v":{"v":0,"d":"0 ₫"}},{"$f":"SUBTOTAL(109,Doanh_số_dự_báo[Dự báo \nTháng Mười Hai])","v":{"v":0,"d":"0 ₫"}}]
[null,"Tổng tích lũy",{"$f":"C20","v":{"v":270000,"d":"270,000 ₫"}},{"$f":"C21+D20","v":{"v":290000,"d":"290,000 ₫"}},{"$f":"D21+E20","v":{"v":310000,"d":"310,000 ₫"}},{"$f":"E21+F20","v":{"v":310000,"d":"310,000 ₫"}},{"$f":"F21+G20","v":{"v":310000,"d":"310,000 ₫"}},{"$f":"G21+H20","v":{"v":310000,"d":"310,000 ₫"}},{"$f":"H21+I20","v":{"v":310000,"d":"310,000 ₫"}},{"$f":"I21+J20","v":{"v":310000,"d":"310,000 ₫"}},{"$f":"J21+K20","v":{"v":310000,"d":"310,000 ₫"}},{"$f":"K21+L20","v":{"v":310000,"d":"310,000 ₫"}},{"$f":"L21+M20","v":{"v":310000,"d":"310,000 ₫"}},{"$f":"M21+N20","v":{"v":310000,"d":"310,000 ₫"}}]

{"sheet":"Dự báo theo trọng số hàng tháng","index":2,"n_rows":3,"n_cols":2,"rows_kept":3}
[null,{"$f":"Tên_công_ty","v":"Tên Công ty"}]
[null,"Dự báo theo Trọng số Hàng tháng"]
[null," "]